{"text_format":"3","workbook":"xlsx","n_sheets":5,"sheets":["Faktura","Klienci","Faktury — Główne","Szczegóły faktury","Informacje o śledzeniu faktur"],"not_rendered":{"defined_names":8},"read":"whole","date_system":"1900"}

{"sheet":"Faktura","index":0,"n_rows":39,"n_cols":7,"rows_kept":39,"merged":[[1,1,1,2],[1,3,1,4],[1,5,1,6],[2,1,2,2],[2,3,2,4],[2,5,2,6],[3,3,3,4],[4,3,4,4],[5,3,5,4],[37,1,37,4],[38,1,38,4]]}
[null,"Nazwa firmy"]
[null,"Ulica",null,"Tel.: Numer telefonu",null,"Adres e-mail"]
[null,"Kod pocztowy, miasto",null,"Faks: Numer faksu",null,"Witryna internetowa"]
[null,"Faktura dla:",{"$f":"IFERROR(VLOOKUP(VLOOKUP(generator_liczb_losowych_faktury,Faktury_Główne[],2,FALSE),Lista_klientów[],3,TRUE),\"\")","v":"Contoso, Ltd"},{"$f":"\"Telefon: \"&IFERROR(VLOOKUP(VLOOKUP(generator_liczb_losowych_faktury,Faktury_Główne[],2,FALSE),Lista_klientów[],9,FALSE),\"\")","v":"Telefon: (022) 123-45-67"},null,"Nr faktury:","3-456-2"]
[null,"Adres:",{"$f":"IFERROR(IF((VLOOKUP(VLOOKUP(generator_liczb_losowych_faktury,Faktury_Główne[],2,FALSE),Lista_klientów[],5,FALSE))=\"\",\"\",(VLOOKUP(VLOOKUP(generator_liczb_losowych_faktury,Faktury_Główne[],2,FALSE),Lista_klientów[],5,FALSE))),\"\")","v":"ul. Orzechowa 567"},{"$f":"\"Faks:     \"&IFERROR(VLOOKUP(VLOOKUP(generator_liczb_losowych_faktury,Faktury_Główne[],2,FALSE),Lista_klientów[],11,FALSE),\"\")","v":"Faks:     (022) 123-45-68"},null,"Data faktury:",{"$f":"IFERROR(IF(VLOOKUP(generator_liczb_losowych_faktury,Faktury_Główne[],3,FALSE)=\"\",\"\",VLOOKUP(generator_liczb_losowych_faktury,Faktury_Główne[],3,FALSE)),\"\")","v":"2019-08-08"}]
[null,null,{"$f":"IFERROR(VLOOKUP(VLOOKUP(generator_liczb_losowych_faktury,Faktury_Główne[],2,FALSE),Lista_klientów[],6,FALSE)&\", \"& VLOOKUP(VLOOKUP(G4,Faktury_Główne[],2,FALSE),Lista_klientów[],7,FALSE)&\" \"&VLOOKUP(VLOOKUP(G4,Faktury_Główne[],2,FALSE),Lista_klientów[],8,FALSE),\"\")","v":"Warszawa, Mazowieckie 098765"},{"$f":"\"Adres e-mail: \"&IFERROR(VLOOKUP(VLOOKUP(generator_liczb_losowych_faktury,Faktury_Główne[],2,FALSE),Lista_klientów[],10,FALSE),\"\")","v":"Adres e-mail: osoba@example.com"}]
[null,{"$f":"\"Faktura dla: \"&IFERROR(VLOOKUP(generator_liczb_losowych_faktury,Faktury_Główne[],4),\"\")","v":"Faktura dla: Projekt 2"}]
[null,"Nr pozycji","Opis","Ilość","Cena jednostkowa","Rabat","Cena"]
[null,{"$f":"IFERROR(INDEX(Szczegóły_faktury[],SMALL(IF(Szczegóły_faktury[Nr faktury]=generator_liczb_losowych_faktury,ROW(Szczegóły_faktury[])-ROW(Szczegóły_faktury[#Headers])), ROW(1:1)), MATCH($B$8, Szczegóły_faktury[#Headers], 0)),\"\")","v":"Z4567"},{"$f":"IFERROR(INDEX(Szczegóły_faktury[],SMALL(IF(Szczegóły_faktury[Nr faktury]=generator_liczb_losowych_faktury,ROW(Szczegóły_faktury[])-ROW(Szczegóły_faktury[#Headers])), ROW(1:1)), MATCH($C$8, Szczegóły_faktury[#Headers], 0)),\"\")","v":"Faktura 3-456-2 dane 1"},{"$f":"IFERROR(INDEX(Szczegóły_faktury[],SMALL(IF(Szczegóły_faktury[Nr faktury]=generator_liczb_losowych_faktury,ROW(Szczegóły_faktury[])-ROW(Szczegóły_faktury[#Headers])), ROW(1:1)), MATCH($D$8, Szczegóły_faktury[#Headers], 0)),\"\")","v":39},{"$f":"IFERROR(INDEX(Szczegóły_faktury[],SMALL(IF(Szczegóły_faktury[Nr faktury]=generator_liczb_losowych_faktury,ROW(Szczegóły_faktury[])-ROW(Szczegóły_faktury[#Headers])), ROW(1:1)), MATCH($E$8, Szczegóły_faktury[#Headers], 0)),\"\")","v":{"v":5,"d":"5.00 zł"}},{"$f":"IFERROR(INDEX(Szczegóły_faktury[],SMALL(IF(Szczegóły_faktury[Nr faktury]=generator_liczb_losowych_faktury,ROW(Szczegóły_faktury[])-ROW(Szczegóły_faktury[#Headers])), ROW(1:1)), MATCH($F$8, Szczegóły_faktury[#Headers], 0)),\"\")","v":0},{"$f":"IFERROR((D9*E9)-F9,\"\")","v":{"v":195,"d":"195.00 zł"}}]
[null,{"$f":"IFERROR(INDEX(Szczegóły_faktury[],SMALL(IF(Szczegóły_faktury[Nr faktury]=generator_liczb_losowych_faktury,ROW(Szczegóły_faktury[])-ROW(Szczegóły_faktury[#Headers])), ROW(2:2)), MATCH($B$8, Szczegóły_faktury[#Headers], 0)),\"\")","v":"Z4568"},{"$f":"IFERROR(INDEX(Szczegóły_faktury[],SMALL(IF(Szczegóły_faktury[Nr faktury]=generator_liczb_losowych_faktury,ROW(Szczegóły_faktury[])-ROW(Szczegóły_faktury[#Headers])), ROW(2:2)), MATCH($C$8, Szczegóły_faktury[#Headers], 0)),\"\")","v":"Faktura 3-456-2 dane 2"},{"$f":"IFERROR(INDEX(Szczegóły_faktury[],SMALL(IF(Szczegóły_faktury[Nr faktury]=generator_liczb_losowych_faktury,ROW(Szczegóły_faktury[])-ROW(Szczegóły_faktury[#Headers])), ROW(2:2)), MATCH($D$8, Szczegóły_faktury[#Headers], 0)),\"\")","v":40},{"$f":"IFERROR(INDEX(Szczegóły_faktury[],SMALL(IF(Szczegóły_faktury[Nr faktury]=generator_liczb_losowych_faktury,ROW(Szczegóły_faktury[])-ROW(Szczegóły_faktury[#Headers])), ROW(2:2)), MATCH($E$8, Szczegóły_faktury[#Headers], 0)),\"\")","v":{"v":4,"d":"4.00 zł"}},{"$f":"IFERROR(INDEX(Szczegóły_faktury[],SMALL(IF(Szczegóły_faktury[Nr faktury]=generator_liczb_losowych_faktury,ROW(Szczegóły_faktury[])-ROW(Szczegóły_faktury[#Headers])), ROW(2:2)), MATCH($F$8, Szczegóły_faktury[#Headers], 0)),\"\")","v":{"v":5,"d":"5.00 zł"}},{"v":155,"d":"155.00 zł"}]
[null,{"$f":"IFERROR(INDEX(Szczegóły_faktury[],SMALL(IF(Szczegóły_faktury[Nr faktury]=generator_liczb_losowych_faktury,ROW(Szczegóły_faktury[])-ROW(Szczegóły_faktury[#Headers])), ROW(3:3)), MATCH($B$8, Szczegóły_faktury[#Headers], 0)),\"\")","v":"Z4569"},{"$f":"IFERROR(INDEX(Szczegóły_faktury[],SMALL(IF(Szczegóły_faktury[Nr faktury]=generator_liczb_losowych_faktury,ROW(Szczegóły_faktury[])-ROW(Szczegóły_faktury[#Headers])), ROW(3:3)), MATCH($C$8, Szczegóły_faktury[#Headers], 0)),\"\")","v":"Faktura 3-456-2 dane 3"},{"$f":"IFERROR(INDEX(Szczegóły_faktury[],SMALL(IF(Szczegóły_faktury[Nr faktury]=generator_liczb_losowych_faktury,ROW(Szczegóły_faktury[])-ROW(Szczegóły_faktury[#Headers])), ROW(3:3)), MATCH($D$8, Szczegóły_faktury[#Headers], 0)),\"\")","v":30},{"$f":"IFERROR(INDEX(Szczegóły_faktury[],SMALL(IF(Szczegóły_faktury[Nr faktury]=generator_liczb_losowych_faktury,ROW(Szczegóły_faktury[])-ROW(Szczegóły_faktury[#Headers])), ROW(3:3)), MATCH($E$8, Szczegóły_faktury[#Headers], 0)),\"\")","v":{"v":6,"d":"6.00 zł"}},{"$f":"IFERROR(INDEX(Szczegóły_faktury[],SMALL(IF(Szczegóły_faktury[Nr faktury]=generator_liczb_losowych_faktury,ROW(Szczegóły_faktury[])-ROW(Szczegóły_faktury[#Headers])), ROW(3:3)), MATCH($F$8, Szczegóły_faktury[#Headers], 0)),\"\")","v":{"v":7,"d":"7.00 zł"}},{"v":173,"d":"173.00 zł"}]
[null,{"$f":"IFERROR(INDEX(Szczegóły_faktury[],SMALL(IF(Szczegóły_faktury[Nr faktury]=generator_liczb_losowych_faktury,ROW(Szczegóły_faktury[])-ROW(Szczegóły_faktury[#Headers])), ROW(4:4)), MATCH($B$8, Szczegóły_faktury[#Headers], 0)),\"\")","v":"Z4570"},{"$f":"IFERROR(INDEX(Szczegóły_faktury[],SMALL(IF(Szczegóły_faktury[Nr faktury]=generator_liczb_losowych_faktury,ROW(Szczegóły_faktury[])-ROW(Szczegóły_faktury[#Headers])), ROW(4:4)), MATCH($C$8, Szczegóły_faktury[#Headers], 0)),\"\")","v":"Faktura 3-456-2 dane 4"},{"$f":"IFERROR(INDEX(Szczegóły_faktury[],SMALL(IF(Szczegóły_faktury[Nr faktury]=generator_liczb_losowych_faktury,ROW(Szczegóły_faktury[])-ROW(Szczegóły_faktury[#Headers])), ROW(4:4)), MATCH($D$8, Szczegóły_faktury[#Headers], 0)),\"\")","v":40},{"$f":"IFERROR(INDEX(Szczegóły_faktury[],SMALL(IF(Szczegóły_faktury[Nr faktury]=generator_liczb_losowych_faktury,ROW(Szczegóły_faktury[])-ROW(Szczegóły_faktury[#Headers])), ROW(4:4)), MATCH($E$8, Szczegóły_faktury[#Headers], 0)),\"\")","v":{"v":7,"d":"7.00 zł"}},{"$f":"IFERROR(INDEX(Szczegóły_faktury[],SMALL(IF(Szczegóły_faktury[Nr faktury]=generator_liczb_losowych_faktury,ROW(Szczegóły_faktury[])-ROW(Szczegóły_faktury[#Headers])), ROW(4:4)), MATCH($F$8, Szczegóły_faktury[#Headers], 0)),\"\")","v":0},{"v":280,"d":"280.00 zł"}]
[null,{"$f":"IFERROR(INDEX(Szczegóły_faktury[],SMALL(IF(Szczegóły_faktury[Nr faktury]=generator_liczb_losowych_faktury,ROW(Szczegóły_faktury[])-ROW(Szczegóły_faktury[#Headers])), ROW(5:5)), MATCH($B$8, Szczegóły_faktury[#Headers], 0)),\"\")","v":"Z4571"},{"$f":"IFERROR(INDEX(Szczegóły_faktury[],SMALL(IF(Szczegóły_faktury[Nr faktury]=generator_liczb_losowych_faktury,ROW(Szczegóły_faktury[])-ROW(Szczegóły_faktury[#Headers])), ROW(5:5)), MATCH($C$8, Szczegóły_faktury[#Headers], 0)),\"\")","v":"Faktura 3-456-2 dane 5"},{"$f":"IFERROR(INDEX(Szczegóły_faktury[],SMALL(IF(Szczegóły_faktury[Nr faktury]=generator_liczb_losowych_faktury,ROW(Szczegóły_faktury[])-ROW(Szczegóły_faktury[#Headers])), ROW(5:5)), MATCH($D$8, Szczegóły_faktury[#Headers], 0)),\"\")","v":10},{"$f":"IFERROR(INDEX(Szczegóły_faktury[],SMALL(IF(Szczegóły_faktury[Nr faktury]=generator_liczb_losowych_faktury,ROW(Szczegóły_faktury[])-ROW(Szczegóły_faktury[#Headers])), ROW(5:5)), MATCH($E$8, Szczegóły_faktury[#Headers], 0)),\"\")","v":{"v":4,"d":"4.00 zł"}},{"$f":"IFERROR(INDEX(Szczegóły_faktury[],SMALL(IF(Szczegóły_faktury[Nr faktury]=generator_liczb_losowych_faktury,ROW(Szczegóły_faktury[])-ROW(Szczegóły_faktury[#Headers])), ROW(5:5)), MATCH($F$8, Szczegóły_faktury[#Headers], 0)),\"\")","v":0},{"v":40,"d":"40.00 zł"}]
[null,{"$f":"IFERROR(INDEX(Szczegóły_faktury[],SMALL(IF(Szczegóły_faktury[Nr faktury]=generator_liczb_losowych_faktury,ROW(Szczegóły_faktury[])-ROW(Szczegóły_faktury[#Headers])), ROW(6:6)), MATCH($B$8, Szczegóły_faktury[#Headers], 0)),\"\")","v":"Z4572"},{"$f":"IFERROR(INDEX(Szczegóły_faktury[],SMALL(IF(Szczegóły_faktury[Nr faktury]=generator_liczb_losowych_faktury,ROW(Szczegóły_faktury[])-ROW(Szczegóły_faktury[#Headers])), ROW(6:6)), MATCH($C$8, Szczegóły_faktury[#Headers], 0)),\"\")","v":"Faktura 3-456-2 dane 6"},{"$f":"IFERROR(INDEX(Szczegóły_faktury[],SMALL(IF(Szczegóły_faktury[Nr faktury]=generator_liczb_losowych_faktury,ROW(Szczegóły_faktury[])-ROW(Szczegóły_faktury[#Headers])), ROW(6:6)), MATCH($D$8, Szczegóły_faktury[#Headers], 0)),\"\")","v":5},{"$f":"IFERROR(INDEX(Szczegóły_faktury[],SMALL(IF(Szczegóły_faktury[Nr faktury]=generator_liczb_losowych_faktury,ROW(Szczegóły_faktury[])-ROW(Szczegóły_faktury[#Headers])), ROW(6:6)), MATCH($E$8, Szczegóły_faktury[#Headers], 0)),\"\")","v":{"v":8,"d":"8.00 zł"}},{"$f":"IFERROR(INDEX(Szczegóły_faktury[],SMALL(IF(Szczegóły_faktury[Nr faktury]=generator_liczb_losowych_faktury,ROW(Szczegóły_faktury[])-ROW(Szczegóły_faktury[#Headers])), ROW(6:6)), MATCH($F$8, Szczegóły_faktury[#Headers], 0)),\"\")","v":0},{"v":40,"d":"40.00 zł"}]
[null,{"$f":"IFERROR(INDEX(Szczegóły_faktury[],SMALL(IF(Szczegóły_faktury[Nr faktury]=generator_liczb_losowych_faktury,ROW(Szczegóły_faktury[])-ROW(Szczegóły_faktury[#Headers])), ROW(7:7)), MATCH($B$8, Szczegóły_faktury[#Headers], 0)),\"\")","v":"Z4573"},{"$f":"IFERROR(INDEX(Szczegóły_faktury[],SMALL(IF(Szczegóły_faktury[Nr faktury]=generator_liczb_losowych_faktury,ROW(Szczegóły_faktury[])-ROW(Szczegóły_faktury[#Headers])), ROW(7:7)), MATCH($C$8, Szczegóły_faktury[#Headers], 0)),\"\")","v":"Faktura 3-456-2 dane 7"},{"$f":"IFERROR(INDEX(Szczegóły_faktury[],SMALL(IF(Szczegóły_faktury[Nr faktury]=generator_liczb_losowych_faktury,ROW(Szczegóły_faktury[])-ROW(Szczegóły_faktury[#Headers])), ROW(7:7)), MATCH($D$8, Szczegóły_faktury[#Headers], 0)),\"\")","v":70},{"$f":"IFERROR(INDEX(Szczegóły_faktury[],SMALL(IF(Szczegóły_faktury[Nr faktury]=generator_liczb_losowych_faktury,ROW(Szczegóły_faktury[])-ROW(Szczegóły_faktury[#Headers])), ROW(7:7)), MATCH($E$8, Szczegóły_faktury[#Headers], 0)),\"\")","v":{"v":6,"d":"6.00 zł"}},{"$f":"IFERROR(INDEX(Szczegóły_faktury[],SMALL(IF(Szczegóły_faktury[Nr faktury]=generator_liczb_losowych_faktury,ROW(Szczegóły_faktury[])-ROW(Szczegóły_faktury[#Headers])), ROW(7:7)), MATCH($F$8, Szczegóły_faktury[#Headers], 0)),\"\")","v":0},{"v":420,"d":"420.00 zł"}]
[null,{"$f":"IFERROR(INDEX(Szczegóły_faktury[],SMALL(IF(Szczegóły_faktury[Nr faktury]=generator_liczb_losowych_faktury,ROW(Szczegóły_faktury[])-ROW(Szczegóły_faktury[#Headers])), ROW(8:8)), MATCH($B$8, Szczegóły_faktury[#Headers], 0)),\"\")","v":"Z4574"},{"$f":"IFERROR(INDEX(Szczegóły_faktury[],SMALL(IF(Szczegóły_faktury[Nr faktury]=generator_liczb_losowych_faktury,ROW(Szczegóły_faktury[])-ROW(Szczegóły_faktury[#Headers])), ROW(8:8)), MATCH($C$8, Szczegóły_faktury[#Headers], 0)),\"\")","v":"Faktura 3-456-2 dane 8"},{"$f":"IFERROR(INDEX(Szczegóły_faktury[],SMALL(IF(Szczegóły_faktury[Nr faktury]=generator_liczb_losowych_faktury,ROW(Szczegóły_faktury[])-ROW(Szczegóły_faktury[#Headers])), ROW(8:8)), MATCH($D$8, Szczegóły_faktury[#Headers], 0)),\"\")","v":25},{"$f":"IFERROR(INDEX(Szczegóły_faktury[],SMALL(IF(Szczegóły_faktury[Nr faktury]=generator_liczb_losowych_faktury,ROW(Szczegóły_faktury[])-ROW(Szczegóły_faktury[#Headers])), ROW(8:8)), MATCH($E$8, Szczegóły_faktury[#Headers], 0)),\"\")","v":{"v":4,"d":"4.00 zł"}},{"$f":"IFERROR(INDEX(Szczegóły_faktury[],SMALL(IF(Szczegóły_faktury[Nr faktury]=generator_liczb_losowych_faktury,ROW(Szczegóły_faktury[])-ROW(Szczegóły_faktury[#Headers])), ROW(8:8)), MATCH($F$8, Szczegóły_faktury[#Headers], 0)),\"\")","v":0},{"v":100,"d":"100.00 zł"}]
[null,{"$f":"IFERROR(INDEX(Szczegóły_faktury[],SMALL(IF(Szczegóły_faktury[Nr faktury]=generator_liczb_losowych_faktury,ROW(Szczegóły_faktury[])-ROW(Szczegóły_faktury[#Headers])), ROW(9:9)), MATCH($B$8, Szczegóły_faktury[#Headers], 0)),\"\")","v":"Z4575"},{"$f":"IFERROR(INDEX(Szczegóły_faktury[],SMALL(IF(Szczegóły_faktury[Nr faktury]=generator_liczb_losowych_faktury,ROW(Szczegóły_faktury[])-ROW(Szczegóły_faktury[#Headers])), ROW(9:9)), MATCH($C$8, Szczegóły_faktury[#Headers], 0)),\"\")","v":"Faktura 3-456-2 dane 9"},{"$f":"IFERROR(INDEX(Szczegóły_faktury[],SMALL(IF(Szczegóły_faktury[Nr faktury]=generator_liczb_losowych_faktury,ROW(Szczegóły_faktury[])-ROW(Szczegóły_faktury[#Headers])), ROW(9:9)), MATCH($D$8, Szczegóły_faktury[#Headers], 0)),\"\")","v":5},{"$f":"IFERROR(INDEX(Szczegóły_faktury[],SMALL(IF(Szczegóły_faktury[Nr faktury]=generator_liczb_losowych_faktury,ROW(Szczegóły_faktury[])-ROW(Szczegóły_faktury[#Headers])), ROW(9:9)), MATCH($E$8, Szczegóły_faktury[#Headers], 0)),\"\")","v":{"v":7,"d":"7.00 zł"}},{"$f":"IFERROR(INDEX(Szczegóły_faktury[],SMALL(IF(Szczegóły_faktury[Nr faktury]=generator_liczb_losowych_faktury,ROW(Szczegóły_faktury[])-ROW(Szczegóły_faktury[#Headers])), ROW(9:9)), MATCH($F$8, Szczegóły_faktury[#Headers], 0)),\"\")","v":{"v":3,"d":"3.00 zł"}},{"v":32,"d":"32.00 zł"}]
[null,{"$f":"IFERROR(INDEX(Szczegóły_faktury[],SMALL(IF(Szczegóły_faktury[Nr faktury]=generator_liczb_losowych_faktury,ROW(Szczegóły_faktury[])-ROW(Szczegóły_faktury[#Headers])), ROW(10:10)), MATCH($B$8, Szczegóły_faktury[#Headers], 0)),\"\")","v":"Z4576"},{"$f":"IFERROR(INDEX(Szczegóły_faktury[],SMALL(IF(Szczegóły_faktury[Nr faktury]=generator_liczb_losowych_faktury,ROW(Szczegóły_faktury[])-ROW(Szczegóły_faktury[#Headers])), ROW(10:10)), MATCH($C$8, Szczegóły_faktury[#Headers], 0)),\"\")","v":"Faktura 3-456-2 dane 10"},{"$f":"IFERROR(INDEX(Szczegóły_faktury[],SMALL(IF(Szczegóły_faktury[Nr faktury]=generator_liczb_losowych_faktury,ROW(Szczegóły_faktury[])-ROW(Szczegóły_faktury[#Headers])), ROW(10:10)), MATCH($D$8, Szczegóły_faktury[#Headers], 0)),\"\")","v":80},{"$f":"IFERROR(INDEX(Szczegóły_faktury[],SMALL(IF(Szczegóły_faktury[Nr faktury]=generator_liczb_losowych_faktury,ROW(Szczegóły_faktury[])-ROW(Szczegóły_faktury[#Headers])), ROW(10:10)), MATCH($E$8, Szczegóły_faktury[#Headers], 0)),\"\")","v":{"v":1,"d":"1.00 zł"}},{"$f":"IFERROR(INDEX(Szczegóły_faktury[],SMALL(IF(Szczegóły_faktury[Nr faktury]=generator_liczb_losowych_faktury,ROW(Szczegóły_faktury[])-ROW(Szczegóły_faktury[#Headers])), ROW(10:10)), MATCH($F$8, Szczegóły_faktury[#Headers], 0)),\"\")","v":0},{"v":80,"d":"80.00 zł"}]
[null,{"$f":"IFERROR(INDEX(Szczegóły_faktury[],SMALL(IF(Szczegóły_faktury[Nr faktury]=generator_liczb_losowych_faktury,ROW(Szczegóły_faktury[])-ROW(Szczegóły_faktury[#Headers])), ROW(11:11)), MATCH($B$8, Szczegóły_faktury[#Headers], 0)),\"\")","v":"Z4577"},{"$f":"IFERROR(INDEX(Szczegóły_faktury[],SMALL(IF(Szczegóły_faktury[Nr faktury]=generator_liczb_losowych_faktury,ROW(Szczegóły_faktury[])-ROW(Szczegóły_faktury[#Headers])), ROW(11:11)), MATCH($C$8, Szczegóły_faktury[#Headers], 0)),\"\")","v":"Faktura 3-456-2 dane 11"},{"$f":"IFERROR(INDEX(Szczegóły_faktury[],SMALL(IF(Szczegóły_faktury[Nr faktury]=generator_liczb_losowych_faktury,ROW(Szczegóły_faktury[])-ROW(Szczegóły_faktury[#Headers])), ROW(11:11)), MATCH($D$8, Szczegóły_faktury[#Headers], 0)),\"\")","v":65},{"$f":"IFERROR(INDEX(Szczegóły_faktury[],SMALL(IF(Szczegóły_faktury[Nr faktury]=generator_liczb_losowych_faktury,ROW(Szczegóły_faktury[])-ROW(Szczegóły_faktury[#Headers])), ROW(11:11)), MATCH($E$8, Szczegóły_faktury[#Headers], 0)),\"\")","v":{"v":7,"d":"7.00 zł"}},{"$f":"IFERROR(INDEX(Szczegóły_faktury[],SMALL(IF(Szczegóły_faktury[Nr faktury]=generator_liczb_losowych_faktury,ROW(Szczegóły_faktury[])-ROW(Szczegóły_faktury[#Headers])), ROW(11:11)), MATCH($F$8, Szczegóły_faktury[#Headers], 0)),\"\")","v":0},{"v":455,"d":"455.00 zł"}]
[null,{"$f":"IFERROR(INDEX(Szczegóły_faktury[],SMALL(IF(Szczegóły_faktury[Nr faktury]=generator_liczb_losowych_faktury,ROW(Szczegóły_faktury[])-ROW(Szczegóły_faktury[#Headers])), ROW(12:12)), MATCH($B$8, Szczegóły_faktury[#Headers], 0)),\"\")","v":"Z4578"},{"$f":"IFERROR(INDEX(Szczegóły_faktury[],SMALL(IF(Szczegóły_faktury[Nr faktury]=generator_liczb_losowych_faktury,ROW(Szczegóły_faktury[])-ROW(Szczegóły_faktury[#Headers])), ROW(12:12)), MATCH($C$8, Szczegóły_faktury[#Headers], 0)),\"\")","v":"Faktura 3-456-2 dane 12"},{"$f":"IFERROR(INDEX(Szczegóły_faktury[],SMALL(IF(Szczegóły_faktury[Nr faktury]=generator_liczb_losowych_faktury,ROW(Szczegóły_faktury[])-ROW(Szczegóły_faktury[#Headers])), ROW(12:12)), MATCH($D$8, Szczegóły_faktury[#Headers], 0)),\"\")","v":44},{"$f":"IFERROR(INDEX(Szczegóły_faktury[],SMALL(IF(Szczegóły_faktury[Nr faktury]=generator_liczb_losowych_faktury,ROW(Szczegóły_faktury[])-ROW(Szczegóły_faktury[#Headers])), ROW(12:12)), MATCH($E$8, Szczegóły_faktury[#Headers], 0)),\"\")","v":{"v":1,"d":"1.00 zł"}},{"$f":"IFERROR(INDEX(Szczegóły_faktury[],SMALL(IF(Szczegóły_faktury[Nr faktury]=generator_liczb_losowych_faktury,ROW(Szczegóły_faktury[])-ROW(Szczegóły_faktury[#Headers])), ROW(12:12)), MATCH($F$8, Szczegóły_faktury[#Headers], 0)),\"\")","v":0},{"v":44,"d":"44.00 zł"}]
[null,{"$f":"IFERROR(INDEX(Szczegóły_faktury[],SMALL(IF(Szczegóły_faktury[Nr faktury]=generator_liczb_losowych_faktury,ROW(Szczegóły_faktury[])-ROW(Szczegóły_faktury[#Headers])), ROW(13:13)), MATCH($B$8, Szczegóły_faktury[#Headers], 0)),\"\")","v":""},{"$f":"IFERROR(INDEX(Szczegóły_faktury[],SMALL(IF(Szczegóły_faktury[Nr faktury]=generator_liczb_losowych_faktury,ROW(Szczegóły_faktury[])-ROW(Szczegóły_faktury[#Headers])), ROW(13:13)), MATCH($C$8, Szczegóły_faktury[#Headers], 0)),\"\")","v":""},{"$f":"IFERROR(INDEX(Szczegóły_faktury[],SMALL(IF(Szczegóły_faktury[Nr faktury]=generator_liczb_losowych_faktury,ROW(Szczegóły_faktury[])-ROW(Szczegóły_faktury[#Headers])), ROW(13:13)), MATCH($D$8, Szczegóły_faktury[#Headers], 0)),\"\")","v":""},{"$f":"IFERROR(INDEX(Szczegóły_faktury[],SMALL(IF(Szczegóły_faktury[Nr faktury]=generator_liczb_losowych_faktury,ROW(Szczegóły_faktury[])-ROW(Szczegóły_faktury[#Headers])), ROW(13:13)), MATCH($E$8, Szczegóły_faktury[#Headers], 0)),\"\")","v":""},{"$f":"IFERROR(INDEX(Szczegóły_faktury[],SMALL(IF(Szczegóły_faktury[Nr faktury]=generator_liczb_losowych_faktury,ROW(Szczegóły_faktury[])-ROW(Szczegóły_faktury[#Headers])), ROW(13:13)), MATCH($F$8, Szczegóły_faktury[#Headers], 0)),\"\")","v":""},""]
[null,{"$f":"IFERROR(INDEX(Szczegóły_faktury[],SMALL(IF(Szczegóły_faktury[Nr faktury]=generator_liczb_losowych_faktury,ROW(Szczegóły_faktury[])-ROW(Szczegóły_faktury[#Headers])), ROW(14:14)), MATCH($B$8, Szczegóły_faktury[#Headers], 0)),\"\")","v":""},{"$f":"IFERROR(INDEX(Szczegóły_faktury[],SMALL(IF(Szczegóły_faktury[Nr faktury]=generator_liczb_losowych_faktury,ROW(Szczegóły_faktury[])-ROW(Szczegóły_faktury[#Headers])), ROW(14:14)), MATCH($C$8, Szczegóły_faktury[#Headers], 0)),\"\")","v":""},{"$f":"IFERROR(INDEX(Szczegóły_faktury[],SMALL(IF(Szczegóły_faktury[Nr faktury]=generator_liczb_losowych_faktury,ROW(Szczegóły_faktury[])-ROW(Szczegóły_faktury[#Headers])), ROW(14:14)), MATCH($D$8, Szczegóły_faktury[#Headers], 0)),\"\")","v":""},{"$f":"IFERROR(INDEX(Szczegóły_faktury[],SMALL(IF(Szczegóły_faktury[Nr faktury]=generator_liczb_losowych_faktury,ROW(Szczegóły_faktury[])-ROW(Szczegóły_faktury[#Headers])), ROW(14:14)), MATCH($E$8, Szczegóły_faktury[#Headers], 0)),\"\")","v":""},{"$f":"IFERROR(INDEX(Szczegóły_faktury[],SMALL(IF(Szczegóły_faktury[Nr faktury]=generator_liczb_losowych_faktury,ROW(Szczegóły_faktury[])-ROW(Szczegóły_faktury[#Headers])), ROW(14:14)), MATCH($F$8, Szczegóły_faktury[#Headers], 0)),\"\")","v":""},""]
[null,{"$f":"IFERROR(INDEX(Szczegóły_faktury[],SMALL(IF(Szczegóły_faktury[Nr faktury]=generator_liczb_losowych_faktury,ROW(Szczegóły_faktury[])-ROW(Szczegóły_faktury[#Headers])), ROW(15:15)), MATCH($B$8, Szczegóły_faktury[#Headers], 0)),\"\")","v":""},{"$f":"IFERROR(INDEX(Szczegóły_faktury[],SMALL(IF(Szczegóły_faktury[Nr faktury]=generator_liczb_losowych_faktury,ROW(Szczegóły_faktury[])-ROW(Szczegóły_faktury[#Headers])), ROW(15:15)), MATCH($C$8, Szczegóły_faktury[#Headers], 0)),\"\")","v":""},{"$f":"IFERROR(INDEX(Szczegóły_faktury[],SMALL(IF(Szczegóły_faktury[Nr faktury]=generator_liczb_losowych_faktury,ROW(Szczegóły_faktury[])-ROW(Szczegóły_faktury[#Headers])), ROW(15:15)), MATCH($D$8, Szczegóły_faktury[#Headers], 0)),\"\")","v":""},{"$f":"IFERROR(INDEX(Szczegóły_faktury[],SMALL(IF(Szczegóły_faktury[Nr faktury]=generator_liczb_losowych_faktury,ROW(Szczegóły_faktury[])-ROW(Szczegóły_faktury[#Headers])), ROW(15:15)), MATCH($E$8, Szczegóły_faktury[#Headers], 0)),\"\")","v":""},{"$f":"IFERROR(INDEX(Szczegóły_faktury[],SMALL(IF(Szczegóły_faktury[Nr faktury]=generator_liczb_losowych_faktury,ROW(Szczegóły_faktury[])-ROW(Szczegóły_faktury[#Headers])), ROW(15:15)), MATCH($F$8, Szczegóły_faktury[#Headers], 0)),\"\")","v":""},""]
[null,{"$f":"IFERROR(INDEX(Szczegóły_faktury[],SMALL(IF(Szczegóły_faktury[Nr faktury]=generator_liczb_losowych_faktury,ROW(Szczegóły_faktury[])-ROW(Szczegóły_faktury[#Headers])), ROW(16:16)), MATCH($B$8, Szczegóły_faktury[#Headers], 0)),\"\")","v":""},{"$f":"IFERROR(INDEX(Szczegóły_faktury[],SMALL(IF(Szczegóły_faktury[Nr faktury]=generator_liczb_losowych_faktury,ROW(Szczegóły_faktury[])-ROW(Szczegóły_faktury[#Headers])), ROW(16:16)), MATCH($C$8, Szczegóły_faktury[#Headers], 0)),\"\")","v":""},{"$f":"IFERROR(INDEX(Szczegóły_faktury[],SMALL(IF(Szczegóły_faktury[Nr faktury]=generator_liczb_losowych_faktury,ROW(Szczegóły_faktury[])-ROW(Szczegóły_faktury[#Headers])), ROW(16:16)), MATCH($D$8, Szczegóły_faktury[#Headers], 0)),\"\")","v":""},{"$f":"IFERROR(INDEX(Szczegóły_faktury[],SMALL(IF(Szczegóły_faktury[Nr faktury]=generator_liczb_losowych_faktury,ROW(Szczegóły_faktury[])-ROW(Szczegóły_faktury[#Headers])), ROW(16:16)), MATCH($E$8, Szczegóły_faktury[#Headers], 0)),\"\")","v":""},{"$f":"IFERROR(INDEX(Szczegóły_faktury[],SMALL(IF(Szczegóły_faktury[Nr faktury]=generator_liczb_losowych_faktury,ROW(Szczegóły_faktury[])-ROW(Szczegóły_faktury[#Headers])), ROW(16:16)), MATCH($F$8, Szczegóły_faktury[#Headers], 0)),\"\")","v":""},""]
[null,{"$f":"IFERROR(INDEX(Szczegóły_faktury[],SMALL(IF(Szczegóły_faktury[Nr faktury]=generator_liczb_losowych_faktury,ROW(Szczegóły_faktury[])-ROW(Szczegóły_faktury[#Headers])), ROW(17:17)), MATCH($B$8, Szczegóły_faktury[#Headers], 0)),\"\")","v":""},{"$f":"IFERROR(INDEX(Szczegóły_faktury[],SMALL(IF(Szczegóły_faktury[Nr faktury]=generator_liczb_losowych_faktury,ROW(Szczegóły_faktury[])-ROW(Szczegóły_faktury[#Headers])), ROW(17:17)), MATCH($C$8, Szczegóły_faktury[#Headers], 0)),\"\")","v":""},{"$f":"IFERROR(INDEX(Szczegóły_faktury[],SMALL(IF(Szczegóły_faktury[Nr faktury]=generator_liczb_losowych_faktury,ROW(Szczegóły_faktury[])-ROW(Szczegóły_faktury[#Headers])), ROW(17:17)), MATCH($D$8, Szczegóły_faktury[#Headers], 0)),\"\")","v":""},{"$f":"IFERROR(INDEX(Szczegóły_faktury[],SMALL(IF(Szczegóły_faktury[Nr faktury]=generator_liczb_losowych_faktury,ROW(Szczegóły_faktury[])-ROW(Szczegóły_faktury[#Headers])), ROW(17:17)), MATCH($E$8, Szczegóły_faktury[#Headers], 0)),\"\")","v":""},{"$f":"IFERROR(INDEX(Szczegóły_faktury[],SMALL(IF(Szczegóły_faktury[Nr faktury]=generator_liczb_losowych_faktury,ROW(Szczegóły_faktury[])-ROW(Szczegóły_faktury[#Headers])), ROW(17:17)), MATCH($F$8, Szczegóły_faktury[#Headers], 0)),\"\")","v":""},""]
[null,{"$f":"IFERROR(INDEX(Szczegóły_faktury[],SMALL(IF(Szczegóły_faktury[Nr faktury]=generator_liczb_losowych_faktury,ROW(Szczegóły_faktury[])-ROW(Szczegóły_faktury[#Headers])), ROW(18:18)), MATCH($B$8, Szczegóły_faktury[#Headers], 0)),\"\")","v":""},{"$f":"IFERROR(INDEX(Szczegóły_faktury[],SMALL(IF(Szczegóły_faktury[Nr faktury]=generator_liczb_losowych_faktury,ROW(Szczegóły_faktury[])-ROW(Szczegóły_faktury[#Headers])), ROW(18:18)), MATCH($C$8, Szczegóły_faktury[#Headers], 0)),\"\")","v":""},{"$f":"IFERROR(INDEX(Szczegóły_faktury[],SMALL(IF(Szczegóły_faktury[Nr faktury]=generator_liczb_losowych_faktury,ROW(Szczegóły_faktury[])-ROW(Szczegóły_faktury[#Headers])), ROW(18:18)), MATCH($D$8, Szczegóły_faktury[#Headers], 0)),\"\")","v":""},{"$f":"IFERROR(INDEX(Szczegóły_faktury[],SMALL(IF(Szczegóły_faktury[Nr faktury]=generator_liczb_losowych_faktury,ROW(Szczegóły_faktury[])-ROW(Szczegóły_faktury[#Headers])), ROW(18:18)), MATCH($E$8, Szczegóły_faktury[#Headers], 0)),\"\")","v":""},{"$f":"IFERROR(INDEX(Szczegóły_faktury[],SMALL(IF(Szczegóły_faktury[Nr faktury]=generator_liczb_losowych_faktury,ROW(Szczegóły_faktury[])-ROW(Szczegóły_faktury[#Headers])), ROW(18:18)), MATCH($F$8, Szczegóły_faktury[#Headers], 0)),\"\")","v":""},""]
[null,{"$f":"IFERROR(INDEX(Szczegóły_faktury[],SMALL(IF(Szczegóły_faktury[Nr faktury]=generator_liczb_losowych_faktury,ROW(Szczegóły_faktury[])-ROW(Szczegóły_faktury[#Headers])), ROW(19:19)), MATCH($B$8, Szczegóły_faktury[#Headers], 0)),\"\")","v":""},{"$f":"IFERROR(INDEX(Szczegóły_faktury[],SMALL(IF(Szczegóły_faktury[Nr faktury]=generator_liczb_losowych_faktury,ROW(Szczegóły_faktury[])-ROW(Szczegóły_faktury[#Headers])), ROW(19:19)), MATCH($C$8, Szczegóły_faktury[#Headers], 0)),\"\")","v":""},{"$f":"IFERROR(INDEX(Szczegóły_faktury[],SMALL(IF(Szczegóły_faktury[Nr faktury]=generator_liczb_losowych_faktury,ROW(Szczegóły_faktury[])-ROW(Szczegóły_faktury[#Headers])), ROW(19:19)), MATCH($D$8, Szczegóły_faktury[#Headers], 0)),\"\")","v":""},{"$f":"IFERROR(INDEX(Szczegóły_faktury[],SMALL(IF(Szczegóły_faktury[Nr faktury]=generator_liczb_losowych_faktury,ROW(Szczegóły_faktury[])-ROW(Szczegóły_faktury[#Headers])), ROW(19:19)), MATCH($E$8, Szczegóły_faktury[#Headers], 0)),\"\")","v":""},{"$f":"IFERROR(INDEX(Szczegóły_faktury[],SMALL(IF(Szczegóły_faktury[Nr faktury]=generator_liczb_losowych_faktury,ROW(Szczegóły_faktury[])-ROW(Szczegóły_faktury[#Headers])), ROW(19:19)), MATCH($F$8, Szczegóły_faktury[#Headers], 0)),\"\")","v":""},""]
[null,{"$f":"IFERROR(INDEX(Szczegóły_faktury[],SMALL(IF(Szczegóły_faktury[Nr faktury]=generator_liczb_losowych_faktury,ROW(Szczegóły_faktury[])-ROW(Szczegóły_faktury[#Headers])), ROW(20:20)), MATCH($B$8, Szczegóły_faktury[#Headers], 0)),\"\")","v":""},{"$f":"IFERROR(INDEX(Szczegóły_faktury[],SMALL(IF(Szczegóły_faktury[Nr faktury]=generator_liczb_losowych_faktury,ROW(Szczegóły_faktury[])-ROW(Szczegóły_faktury[#Headers])), ROW(20:20)), MATCH($C$8, Szczegóły_faktury[#Headers], 0)),\"\")","v":""},{"$f":"IFERROR(INDEX(Szczegóły_faktury[],SMALL(IF(Szczegóły_faktury[Nr faktury]=generator_liczb_losowych_faktury,ROW(Szczegóły_faktury[])-ROW(Szczegóły_faktury[#Headers])), ROW(20:20)), MATCH($D$8, Szczegóły_faktury[#Headers], 0)),\"\")","v":""},{"$f":"IFERROR(INDEX(Szczegóły_faktury[],SMALL(IF(Szczegóły_faktury[Nr faktury]=generator_liczb_losowych_faktury,ROW(Szczegóły_faktury[])-ROW(Szczegóły_faktury[#Headers])), ROW(20:20)), MATCH($E$8, Szczegóły_faktury[#Headers], 0)),\"\")","v":""},{"$f":"IFERROR(INDEX(Szczegóły_faktury[],SMALL(IF(Szczegóły_faktury[Nr faktury]=generator_liczb_losowych_faktury,ROW(Szczegóły_faktury[])-ROW(Szczegóły_faktury[#Headers])), ROW(20:20)), MATCH($F$8, Szczegóły_faktury[#Headers], 0)),\"\")","v":""},""]
[null,{"$f":"IFERROR(INDEX(Szczegóły_faktury[],SMALL(IF(Szczegóły_faktury[Nr faktury]=generator_liczb_losowych_faktury,ROW(Szczegóły_faktury[])-ROW(Szczegóły_faktury[#Headers])), ROW(21:21)), MATCH($B$8, Szczegóły_faktury[#Headers], 0)),\"\")","v":""},{"$f":"IFERROR(INDEX(Szczegóły_faktury[],SMALL(IF(Szczegóły_faktury[Nr faktury]=generator_liczb_losowych_faktury,ROW(Szczegóły_faktury[])-ROW(Szczegóły_faktury[#Headers])), ROW(21:21)), MATCH($C$8, Szczegóły_faktury[#Headers], 0)),\"\")","v":""},{"$f":"IFERROR(INDEX(Szczegóły_faktury[],SMALL(IF(Szczegóły_faktury[Nr faktury]=generator_liczb_losowych_faktury,ROW(Szczegóły_faktury[])-ROW(Szczegóły_faktury[#Headers])), ROW(21:21)), MATCH($D$8, Szczegóły_faktury[#Headers], 0)),\"\")","v":""},{"$f":"IFERROR(INDEX(Szczegóły_faktury[],SMALL(IF(Szczegóły_faktury[Nr faktury]=generator_liczb_losowych_faktury,ROW(Szczegóły_faktury[])-ROW(Szczegóły_faktury[#Headers])), ROW(21:21)), MATCH($E$8, Szczegóły_faktury[#Headers], 0)),\"\")","v":""},{"$f":"IFERROR(INDEX(Szczegóły_faktury[],SMALL(IF(Szczegóły_faktury[Nr faktury]=generator_liczb_losowych_faktury,ROW(Szczegóły_faktury[])-ROW(Szczegóły_faktury[#Headers])), ROW(21:21)), MATCH($F$8, Szczegóły_faktury[#Headers], 0)),\"\")","v":""},""]
[null,{"$f":"IFERROR(INDEX(Szczegóły_faktury[],SMALL(IF(Szczegóły_faktury[Nr faktury]=generator_liczb_losowych_faktury,ROW(Szczegóły_faktury[])-ROW(Szczegóły_faktury[#Headers])), ROW(22:22)), MATCH($B$8, Szczegóły_faktury[#Headers], 0)),\"\")","v":""},{"$f":"IFERROR(INDEX(Szczegóły_faktury[],SMALL(IF(Szczegóły_faktury[Nr faktury]=generator_liczb_losowych_faktury,ROW(Szczegóły_faktury[])-ROW(Szczegóły_faktury[#Headers])), ROW(22:22)), MATCH($C$8, Szczegóły_faktury[#Headers], 0)),\"\")","v":""},{"$f":"IFERROR(INDEX(Szczegóły_faktury[],SMALL(IF(Szczegóły_faktury[Nr faktury]=generator_liczb_losowych_faktury,ROW(Szczegóły_faktury[])-ROW(Szczegóły_faktury[#Headers])), ROW(22:22)), MATCH($D$8, Szczegóły_faktury[#Headers], 0)),\"\")","v":""},{"$f":"IFERROR(INDEX(Szczegóły_faktury[],SMALL(IF(Szczegóły_faktury[Nr faktury]=generator_liczb_losowych_faktury,ROW(Szczegóły_faktury[])-ROW(Szczegóły_faktury[#Headers])), ROW(22:22)), MATCH($E$8, Szczegóły_faktury[#Headers], 0)),\"\")","v":""},{"$f":"IFERROR(INDEX(Szczegóły_faktury[],SMALL(IF(Szczegóły_faktury[Nr faktury]=generator_liczb_losowych_faktury,ROW(Szczegóły_faktury[])-ROW(Szczegóły_faktury[#Headers])), ROW(22:22)), MATCH($F$8, Szczegóły_faktury[#Headers], 0)),\"\")","v":""},""]
[null,{"$f":"IFERROR(INDEX(Szczegóły_faktury[],SMALL(IF(Szczegóły_faktury[Nr faktury]=generator_liczb_losowych_faktury,ROW(Szczegóły_faktury[])-ROW(Szczegóły_faktury[#Headers])), ROW(23:23)), MATCH($B$8, Szczegóły_faktury[#Headers], 0)),\"\")","v":""},{"$f":"IFERROR(INDEX(Szczegóły_faktury[],SMALL(IF(Szczegóły_faktury[Nr faktury]=generator_liczb_losowych_faktury,ROW(Szczegóły_faktury[])-ROW(Szczegóły_faktury[#Headers])), ROW(23:23)), MATCH($C$8, Szczegóły_faktury[#Headers], 0)),\"\")","v":""},{"$f":"IFERROR(INDEX(Szczegóły_faktury[],SMALL(IF(Szczegóły_faktury[Nr faktury]=generator_liczb_losowych_faktury,ROW(Szczegóły_faktury[])-ROW(Szczegóły_faktury[#Headers])), ROW(23:23)), MATCH($D$8, Szczegóły_faktury[#Headers], 0)),\"\")","v":""},{"$f":"IFERROR(INDEX(Szczegóły_faktury[],SMALL(IF(Szczegóły_faktury[Nr faktury]=generator_liczb_losowych_faktury,ROW(Szczegóły_faktury[])-ROW(Szczegóły_faktury[#Headers])), ROW(23:23)), MATCH($E$8, Szczegóły_faktury[#Headers], 0)),\"\")","v":""},{"$f":"IFERROR(INDEX(Szczegóły_faktury[],SMALL(IF(Szczegóły_faktury[Nr faktury]=generator_liczb_losowych_faktury,ROW(Szczegóły_faktury[])-ROW(Szczegóły_faktury[#Headers])), ROW(23:23)), MATCH($F$8, Szczegóły_faktury[#Headers], 0)),\"\")","v":""},""]
[null,{"$f":"IFERROR(INDEX(Szczegóły_faktury[],SMALL(IF(Szczegóły_faktury[Nr faktury]=generator_liczb_losowych_faktury,ROW(Szczegóły_faktury[])-ROW(Szczegóły_faktury[#Headers])), ROW(24:24)), MATCH($B$8, Szczegóły_faktury[#Headers], 0)),\"\")","v":""},{"$f":"IFERROR(INDEX(Szczegóły_faktury[],SMALL(IF(Szczegóły_faktury[Nr faktury]=generator_liczb_losowych_faktury,ROW(Szczegóły_faktury[])-ROW(Szczegóły_faktury[#Headers])), ROW(24:24)), MATCH($C$8, Szczegóły_faktury[#Headers], 0)),\"\")","v":""},{"$f":"IFERROR(INDEX(Szczegóły_faktury[],SMALL(IF(Szczegóły_faktury[Nr faktury]=generator_liczb_losowych_faktury,ROW(Szczegóły_faktury[])-ROW(Szczegóły_faktury[#Headers])), ROW(24:24)), MATCH($D$8, Szczegóły_faktury[#Headers], 0)),\"\")","v":""},{"$f":"IFERROR(INDEX(Szczegóły_faktury[],SMALL(IF(Szczegóły_faktury[Nr faktury]=generator_liczb_losowych_faktury,ROW(Szczegóły_faktury[])-ROW(Szczegóły_faktury[#Headers])), ROW(24:24)), MATCH($E$8, Szczegóły_faktury[#Headers], 0)),\"\")","v":""},{"$f":"IFERROR(INDEX(Szczegóły_faktury[],SMALL(IF(Szczegóły_faktury[Nr faktury]=generator_liczb_losowych_faktury,ROW(Szczegóły_faktury[])-ROW(Szczegóły_faktury[#Headers])), ROW(24:24)), MATCH($F$8, Szczegóły_faktury[#Headers], 0)),\"\")","v":""},""]
[null,{"$f":"IFERROR(INDEX(Szczegóły_faktury[],SMALL(IF(Szczegóły_faktury[Nr faktury]=generator_liczb_losowych_faktury,ROW(Szczegóły_faktury[])-ROW(Szczegóły_faktury[#Headers])), ROW(25:25)), MATCH($B$8, Szczegóły_faktury[#Headers], 0)),\"\")","v":""},{"$f":"IFERROR(INDEX(Szczegóły_faktury[],SMALL(IF(Szczegóły_faktury[Nr faktury]=generator_liczb_losowych_faktury,ROW(Szczegóły_faktury[])-ROW(Szczegóły_faktury[#Headers])), ROW(25:25)), MATCH($C$8, Szczegóły_faktury[#Headers], 0)),\"\")","v":""},{"$f":"IFERROR(INDEX(Szczegóły_faktury[],SMALL(IF(Szczegóły_faktury[Nr faktury]=generator_liczb_losowych_faktury,ROW(Szczegóły_faktury[])-ROW(Szczegóły_faktury[#Headers])), ROW(25:25)), MATCH($D$8, Szczegóły_faktury[#Headers], 0)),\"\")","v":""},{"$f":"IFERROR(INDEX(Szczegóły_faktury[],SMALL(IF(Szczegóły_faktury[Nr faktury]=generator_liczb_losowych_faktury,ROW(Szczegóły_faktury[])-ROW(Szczegóły_faktury[#Headers])), ROW(25:25)), MATCH($E$8, Szczegóły_faktury[#Headers], 0)),\"\")","v":""},{"$f":"IFERROR(INDEX(Szczegóły_faktury[],SMALL(IF(Szczegóły_faktury[Nr faktury]=generator_liczb_losowych_faktury,ROW(Szczegóły_faktury[])-ROW(Szczegóły_faktury[#Headers])), ROW(25:25)), MATCH($F$8, Szczegóły_faktury[#Headers], 0)),\"\")","v":""},""]
[{"$nulls":5},"Suma częściowa faktury",{"$f":"SUM(Projekt_faktury[Cena])","v":{"v":2014,"d":"2,014.00 zł"}}]
[{"$nulls":5},"Stawka podatkowa",{"$f":"VLOOKUP(generator_liczb_losowych_faktury,Faktury_Główne[],5)","v":{"v":0.0875,"d":"8.75%"}}]
[{"$nulls":5},"Podatek od sprzedaży",{"$f":"G34*G35","v":{"v":176.225,"d":"176.23 zł"}}]
[{"$nulls":5},"Inne",{"$f":"VLOOKUP(generator_liczb_losowych_faktury,Faktury_Główne[],6)","v":0}]
[null,{"$f":"\"Wszystkie przelewy należy wystawić na firmę \"&Nazwa_firmy&\".\"","v":"Wszystkie przelewy należy wystawić na firmę Nazwa firmy."},{"$nulls":3},"Otrzymana wpłata",{"$f":"VLOOKUP(generator_liczb_losowych_faktury,Faktury_Główne[],7)","v":0}]
[null,"Całkowita należność płatna w ciągu <#> dni. W przypadku klientów z zaległościami zostanie co miesiąc naliczona dodatkowa opłata w wysokości <#>%.",{"$nulls":3},"SUMA",{"$f":"(G34+G36+G37)-G38","v":{"v":2190.225,"d":"2,190.23 zł"}}]

{"sheet":"Klienci","index":1,"n_rows":6,"n_cols":12,"rows_kept":6}
[]
[null,null,"Klienci"]
[null,"Wyszukaj","Numer firmy","Nazwa firmy","Imię i nazwisko osoby kontaktowej","Adres","Miasto","Województwo","Kod pocztowy","Telefon","Adres e-mail","Faks"]
[null,{"$f":"C4& \" - \"&D4","v":"1 - Tailspin Toys "},1,"Tailspin Toys ","Robert Lyon","ul. Wiśniowa 12","Szczecin","Zachodniopomorskie","123456","(091) 345-67-89","osoba@example.com","(022) 123-45-67"]
[null,"2 - Contoso, Ltd",2,"Contoso, Ltd","Sanjay Patel","ul. Orzechowa 567","Warszawa","Mazowieckie","098765","(022) 123-45-67","osoba@example.com","(022) 123-45-68"]
[null,"Sumy",{"$f":"\"Łączna liczba klientów: \"&SUBTOTAL(103,Lista_klientów[Numer firmy])","v":"Łączna liczba klientów: 2"}]

{"sheet":"Faktury — Główne","index":2,"n_rows":6,"n_cols":11,"rows_kept":6}
[]
[null,"Faktury"]
[null,"Nr faktury","Firma","Data faktury","Opis projektu","Stawka podatkowa","Inne","Wpłata","Suma szczegółowa","Łączna kwota faktury","Uwagi"]
[null,"3-456-1","1 - Tailspin Toys ",{"$f":"TODAY()","v":"2019-07-29"},"Projekt 1",{"v":0.0875,"d":"8.75%"},{"v":100,"d":"100.00 zł"},{"v":100,"d":"100.00 zł"},{"$f":"SUMIF(Szczegóły_faktury[Nr faktury],\"=\"&Faktury_Główne[[#This Row],[Nr faktury]],Szczegóły_faktury[Suma])","v":{"v":5200,"d":"5,200.00 zł"}},{"$f":"(Faktury_Główne[[#This Row],[Suma szczegółowa]]*(1+Faktury_Główne[[#This Row],[Stawka podatkowa]]))+Faktury_Główne[[#This Row],[Inne]]-Faktury_Główne[[#This Row],[Wpłata]]","v":{"v":5654.999999999999,"d":"5,655.00 zł"}}]
[null,"3-456-2","2 - Contoso, Ltd",{"$f":"TODAY()+10","v":"2019-08-08"},"Projekt 2",{"v":0.0875,"d":"8.75%"},null,null,{"$f":"SUMIF(Szczegóły_faktury[Nr faktury],\"=\"&Faktury_Główne[[#This Row],[Nr faktury]],Szczegóły_faktury[Suma])","v":{"v":2014,"d":"2,014.00 zł"}},{"$f":"(Faktury_Główne[[#This Row],[Suma szczegółowa]]*(1+Faktury_Główne[[#This Row],[Stawka podatkowa]]))+Faktury_Główne[[#This Row],[Inne]]-Faktury_Główne[[#This Row],[Wpłata]]","v":{"v":2190.225,"d":"2,190.23 zł"}}]
[null,"Sumy",{"$f":"\"Łączna liczba faktur: \"&SUBTOTAL(103,Faktury_Główne[Nr faktury])","v":"Łączna liczba faktur: 2"},{"$nulls":3},{"$f":"SUBTOTAL(109,Faktury_Główne[Inne])","v":{"v":100,"d":"100.00 zł"}},{"$f":"SUBTOTAL(109,Faktury_Główne[Wpłata])","v":{"v":100,"d":"100.00 zł"}},{"$f":"SUBTOTAL(109,Faktury_Główne[Suma szczegółowa])","v":{"v":7214,"d":"7,214.00 zł"}},{"$f":"SUBTOTAL(109,Faktury_Główne[Łączna kwota faktury])","v":{"v":7845.2249999999985,"d":"7,845.23 zł"}}]

{"sheet":"Szczegóły faktury","index":3,"n_rows":40,"n_cols":8,"rows_kept":40}
[]
[null,"Szczegóły faktury"]
[null,"Opis","Nr faktury","Nr pozycji","Ilość","Cena jednostkowa","Rabat","Suma"]
[null,"Faktura 3-456-1 dane 1","3-456-1",1,1,{"v":1,"d":"1.00 zł"},{"v":1,"d":"1.00 zł"},{"$f":"(Szczegóły_faktury[[#This Row],[Ilość]]*Szczegóły_faktury[[#This Row],[Cena jednostkowa]])-Szczegóły_faktury[[#This Row],[Rabat]]","v":{"v":0,"d":"0.00 zł"}}]
[null,"Faktura 3-456-1 dane 2","3-456-1",2,2,{"v":2,"d":"2.00 zł"},{"v":2,"d":"2.00 zł"},{"$f":"(Szczegóły_faktury[[#This Row],[Ilość]]*Szczegóły_faktury[[#This Row],[Cena jednostkowa]])-Szczegóły_faktury[[#This Row],[Rabat]]","v":{"v":2,"d":"2.00 zł"}}]
[null,"Faktura 3-456-1 dane 3","3-456-1",3,3,{"v":3,"d":"3.00 zł"},{"v":3,"d":"3.00 zł"},{"$f":"(Szczegóły_faktury[[#This Row],[Ilość]]*Szczegóły_faktury[[#This Row],[Cena jednostkowa]])-Szczegóły_faktury[[#This Row],[Rabat]]","v":{"v":6,"d":"6.00 zł"}}]
[null,"Faktura 3-456-1 dane 4","3-456-1",4,4,{"v":4,"d":"4.00 zł"},{"v":4,"d":"4.00 zł"},{"$f":"(Szczegóły_faktury[[#This Row],[Ilość]]*Szczegóły_faktury[[#This Row],[Cena jednostkowa]])-Szczegóły_faktury[[#This Row],[Rabat]]","v":{"v":12,"d":"12.00 zł"}}]
[null,"Faktura 3-456-1 dane 5","3-456-1",5,5,{"v":5,"d":"5.00 zł"},{"v":5,"d":"5.00 zł"},{"$f":"(Szczegóły_faktury[[#This Row],[Ilość]]*Szczegóły_faktury[[#This Row],[Cena jednostkowa]])-Szczegóły_faktury[[#This Row],[Rabat]]","v":{"v":20,"d":"20.00 zł"}}]
[null,"Faktura 3-456-1 dane 6","3-456-1",6,6,{"v":6,"d":"6.00 zł"},{"v":6,"d":"6.00 zł"},{"$f":"(Szczegóły_faktury[[#This Row],[Ilość]]*Szczegóły_faktury[[#This Row],[Cena jednostkowa]])-Szczegóły_faktury[[#This Row],[Rabat]]","v":{"v":30,"d":"30.00 zł"}}]
[null,"Faktura 3-456-1 dane 7","3-456-1",7,7,{"v":7,"d":"7.00 zł"},{"v":7,"d":"7.00 zł"},{"$f":"(Szczegóły_faktury[[#This Row],[Ilość]]*Szczegóły_faktury[[#This Row],[Cena jednostkowa]])-Szczegóły_faktury[[#This Row],[Rabat]]","v":{"v":42,"d":"42.00 zł"}}]
[null,"Faktura 3-456-1 dane 8","3-456-1",8,8,{"v":8,"d":"8.00 zł"},{"v":8,"d":"8.00 zł"},{"$f":"(Szczegóły_faktury[[#This Row],[Ilość]]*Szczegóły_faktury[[#This Row],[Cena jednostkowa]])-Szczegóły_faktury[[#This Row],[Rabat]]","v":{"v":56,"d":"56.00 zł"}}]
[null,"Faktura 3-456-1 dane 9","3-456-1",9,9,{"v":9,"d":"9.00 zł"},{"v":9,"d":"9.00 zł"},{"$f":"(Szczegóły_faktury[[#This Row],[Ilość]]*Szczegóły_faktury[[#This Row],[Cena jednostkowa]])-Szczegóły_faktury[[#This Row],[Rabat]]","v":{"v":72,"d":"72.00 zł"}}]
[null,"Faktura 3-456-1 dane 10","3-456-1",10,10,{"v":10,"d":"10.00 zł"},{"v":10,"d":"10.00 zł"},{"$f":"(Szczegóły_faktury[[#This Row],[Ilość]]*Szczegóły_faktury[[#This Row],[Cena jednostkowa]])-Szczegóły_faktury[[#This Row],[Rabat]]","v":{"v":90,"d":"90.00 zł"}}]
[null,"Faktura 3-456-1 dane 11","3-456-1",11,11,{"v":11,"d":"11.00 zł"},{"v":11,"d":"11.00 zł"},{"$f":"(Szczegóły_faktury[[#This Row],[Ilość]]*Szczegóły_faktury[[#This Row],[Cena jednostkowa]])-Szczegóły_faktury[[#This Row],[Rabat]]","v":{"v":110,"d":"110.00 zł"}}]
[null,"Faktura 3-456-1 dane 12","3-456-1",12,12,{"v":12,"d":"12.00 zł"},{"v":12,"d":"12.00 zł"},{"$f":"(Szczegóły_faktury[[#This Row],[Ilość]]*Szczegóły_faktury[[#This Row],[Cena jednostkowa]])-Szczegóły_faktury[[#This Row],[Rabat]]","v":{"v":132,"d":"132.00 zł"}}]
[null,"Faktura 3-456-1 dane 13","3-456-1",13,13,{"v":13,"d":"13.00 zł"},{"v":13,"d":"13.00 zł"},{"$f":"(Szczegóły_faktury[[#This Row],[Ilość]]*Szczegóły_faktury[[#This Row],[Cena jednostkowa]])-Szczegóły_faktury[[#This Row],[Rabat]]","v":{"v":156,"d":"156.00 zł"}}]
[null,"Faktura 3-456-1 dane 14","3-456-1",14,14,{"v":14,"d":"14.00 zł"},{"v":14,"d":"14.00 zł"},{"$f":"(Szczegóły_faktury[[#This Row],[Ilość]]*Szczegóły_faktury[[#This Row],[Cena jednostkowa]])-Szczegóły_faktury[[#This Row],[Rabat]]","v":{"v":182,"d":"182.00 zł"}}]
[null,"Faktura 3-456-1 dane 15","3-456-1",15,15,{"v":15,"d":"15.00 zł"},{"v":15,"d":"15.00 zł"},{"$f":"(Szczegóły_faktury[[#This Row],[Ilość]]*Szczegóły_faktury[[#This Row],[Cena jednostkowa]])-Szczegóły_faktury[[#This Row],[Rabat]]","v":{"v":210,"d":"210.00 zł"}}]
[null,"Faktura 3-456-1 dane 16","3-456-1",16,16,{"v":16,"d":"16.00 zł"},{"v":16,"d":"16.00 zł"},{"$f":"(Szczegóły_faktury[[#This Row],[Ilość]]*Szczegóły_faktury[[#This Row],[Cena jednostkowa]])-Szczegóły_faktury[[#This Row],[Rabat]]","v":{"v":240,"d":"240.00 zł"}}]
[null,"Faktura 3-456-1 dane 17","3-456-1",17,17,{"v":17,"d":"17.00 zł"},{"v":17,"d":"17.00 zł"},{"$f":"(Szczegóły_faktury[[#This Row],[Ilość]]*Szczegóły_faktury[[#This Row],[Cena jednostkowa]])-Szczegóły_faktury[[#This Row],[Rabat]]","v":{"v":272,"d":"272.00 zł"}}]
[null,"Faktura 3-456-1 dane 18","3-456-1",18,18,{"v":18,"d":"18.00 zł"},{"v":18,"d":"18.00 zł"},{"$f":"(Szczegóły_faktury[[#This Row],[Ilość]]*Szczegóły_faktury[[#This Row],[Cena jednostkowa]])-Szczegóły_faktury[[#This Row],[Rabat]]","v":{"v":306,"d":"306.00 zł"}}]
[null,"Faktura 3-456-1 dane 19","3-456-1",19,19,{"v":19,"d":"19.00 zł"},{"v":19,"d":"19.00 zł"},{"$f":"(Szczegóły_faktury[[#This Row],[Ilość]]*Szczegóły_faktury[[#This Row],[Cena jednostkowa]])-Szczegóły_faktury[[#This Row],[Rabat]]","v":{"v":342,"d":"342.00 zł"}}]
[null,"Faktura 3-456-1 dane 20","3-456-1",20,20,{"v":20,"d":"20.00 zł"},{"v":20,"d":"20.00 zł"},{"$f":"(Szczegóły_faktury[[#This Row],[Ilość]]*Szczegóły_faktury[[#This Row],[Cena jednostkowa]])-Szczegóły_faktury[[#This Row],[Rabat]]","v":{"v":380,"d":"380.00 zł"}}]
[null,"Faktura 3-456-1 dane 21","3-456-1",21,21,{"v":21,"d":"21.00 zł"},{"v":21,"d":"21.00 zł"},{"$f":"(Szczegóły_faktury[[#This Row],[Ilość]]*Szczegóły_faktury[[#This Row],[Cena jednostkowa]])-Szczegóły_faktury[[#This Row],[Rabat]]","v":{"v":420,"d":"420.00 zł"}}]
[null,"Faktura 3-456-1 dane 22","3-456-1",22,22,{"v":22,"d":"22.00 zł"},{"v":22,"d":"22.00 zł"},{"$f":"(Szczegóły_faktury[[#This Row],[Ilość]]*Szczegóły_faktury[[#This Row],[Cena jednostkowa]])-Szczegóły_faktury[[#This Row],[Rabat]]","v":{"v":462,"d":"462.00 zł"}}]
[null,"Faktura 3-456-1 dane 23","3-456-1",23,23,{"v":23,"d":"23.00 zł"},{"v":23,"d":"23.00 zł"},{"$f":"(Szczegóły_faktury[[#This Row],[Ilość]]*Szczegóły_faktury[[#This Row],[Cena jednostkowa]])-Szczegóły_faktury[[#This Row],[Rabat]]","v":{"v":506,"d":"506.00 zł"}}]
[null,"Faktura 3-456-1 dane 24","3-456-1",24,24,{"v":24,"d":"24.00 zł"},{"v":24,"d":"24.00 zł"},{"$f":"(Szczegóły_faktury[[#This Row],[Ilość]]*Szczegóły_faktury[[#This Row],[Cena jednostkowa]])-Szczegóły_faktury[[#This Row],[Rabat]]","v":{"v":552,"d":"552.00 zł"}}]
[null,"Faktura 3-456-1 dane 25","3-456-1",25,25,{"v":25,"d":"25.00 zł"},{"v":25,"d":"25.00 zł"},{"$f":"(Szczegóły_faktury[[#This Row],[Ilość]]*Szczegóły_faktury[[#This Row],[Cena jednostkowa]])-Szczegóły_faktury[[#This Row],[Rabat]]","v":{"v":600,"d":"600.00 zł"}}]
[null,"Faktura 3-456-2 dane 1","3-456-2","Z4567",39,{"v":5,"d":"5.00 zł"},null,{"$f":"(Szczegóły_faktury[[#This Row],[Ilość]]*Szczegóły_faktury[[#This Row],[Cena jednostkowa]])-Szczegóły_faktury[[#This Row],[Rabat]]","v":{"v":195,"d":"195.00 zł"}}]
[null,"Faktura 3-456-2 dane 2","3-456-2","Z4568",40,{"v":4,"d":"4.00 zł"},{"v":5,"d":"5.00 zł"},{"$f":"(Szczegóły_faktury[[#This Row],[Ilość]]*Szczegóły_faktury[[#This Row],[Cena jednostkowa]])-Szczegóły_faktury[[#This Row],[Rabat]]","v":{"v":155,"d":"155.00 zł"}}]
[null,"Faktura 3-456-2 dane 3","3-456-2","Z4569",30,{"v":6,"d":"6.00 zł"},{"v":7,"d":"7.00 zł"},{"$f":"(Szczegóły_faktury[[#This Row],[Ilość]]*Szczegóły_faktury[[#This Row],[Cena jednostkowa]])-Szczegóły_faktury[[#This Row],[Rabat]]","v":{"v":173,"d":"173.00 zł"}}]
[null,"Faktura 3-456-2 dane 4","3-456-2","Z4570",40,{"v":7,"d":"7.00 zł"},null,{"$f":"(Szczegóły_faktury[[#This Row],[Ilość]]*Szczegóły_faktury[[#This Row],[Cena jednostkowa]])-Szczegóły_faktury[[#This Row],[Rabat]]","v":{"v":280,"d":"280.00 zł"}}]
[null,"Faktura 3-456-2 dane 5","3-456-2","Z4571",10,{"v":4,"d":"4.00 zł"},null,{"$f":"(Szczegóły_faktury[[#This Row],[Ilość]]*Szczegóły_faktury[[#This Row],[Cena jednostkowa]])-Szczegóły_faktury[[#This Row],[Rabat]]","v":{"v":40,"d":"40.00 zł"}}]
[null,"Faktura 3-456-2 dane 6","3-456-2","Z4572",5,{"v":8,"d":"8.00 zł"},null,{"$f":"(Szczegóły_faktury[[#This Row],[Ilość]]*Szczegóły_faktury[[#This Row],[Cena jednostkowa]])-Szczegóły_faktury[[#This Row],[Rabat]]","v":{"v":40,"d":"40.00 zł"}}]
[null,"Faktura 3-456-2 dane 7","3-456-2","Z4573",70,{"v":6,"d":"6.00 zł"},null,{"$f":"(Szczegóły_faktury[[#This Row],[Ilość]]*Szczegóły_faktury[[#This Row],[Cena jednostkowa]])-Szczegóły_faktury[[#This Row],[Rabat]]","v":{"v":420,"d":"420.00 zł"}}]
[null,"Faktura 3-456-2 dane 8","3-456-2","Z4574",25,{"v":4,"d":"4.00 zł"},null,{"$f":"(Szczegóły_faktury[[#This Row],[Ilość]]*Szczegóły_faktury[[#This Row],[Cena jednostkowa]])-Szczegóły_faktury[[#This Row],[Rabat]]","v":{"v":100,"d":"100.00 zł"}}]
[null,"Faktura 3-456-2 dane 9","3-456-2","Z4575",5,{"v":7,"d":"7.00 zł"},{"v":3,"d":"3.00 zł"},{"$f":"(Szczegóły_faktury[[#This Row],[Ilość]]*Szczegóły_faktury[[#This Row],[Cena jednostkowa]])-Szczegóły_faktury[[#This Row],[Rabat]]","v":{"v":32,"d":"32.00 zł"}}]
[null,"Faktura 3-456-2 dane 10","3-456-2","Z4576",80,{"v":1,"d":"1.00 zł"},null,{"$f":"(Szczegóły_faktury[[#This Row],[Ilość]]*Szczegóły_faktury[[#This Row],[Cena jednostkowa]])-Szczegóły_faktury[[#This Row],[Rabat]]","v":{"v":80,"d":"80.00 zł"}}]
[null,"Faktura 3-456-2 dane 11","3-456-2","Z4577",65,{"v":7,"d":"7.00 zł"},null,{"$f":"(Szczegóły_faktury[[#This Row],[Ilość]]*Szczegóły_faktury[[#This Row],[Cena jednostkowa]])-Szczegóły_faktury[[#This Row],[Rabat]]","v":{"v":455,"d":"455.00 zł"}}]
[null,"Faktura 3-456-2 dane 12","3-456-2","Z4578",44,{"v":1,"d":"1.00 zł"},null,{"$f":"(Szczegóły_faktury[[#This Row],[Ilość]]*Szczegóły_faktury[[#This Row],[Cena jednostkowa]])-Szczegóły_faktury[[#This Row],[Rabat]]","v":{"v":44,"d":"44.00 zł"}}]

{"sheet":"Informacje o śledzeniu faktur","index":4,"n_rows":40,"n_cols":3,"rows_kept":40,"merged":[[3,1,3,7],[4,1,4,7],[5,1,5,7],[6,1,6,7],[7,2,7,7],[8,2,8,7],[9,2,9,7],[10,2,10,7],[11,2,11,7],[12,1,12,7],[13,2,13,3],[14,2,14,7],[15,1,15,7],[16,2,16,7],[17,2,17,7],[18,2,18,7],[19,2,19,7],[20,2,20,7],[21,2,21,7],[22,1,22,7],[23,1,23,7],[24,2,24,7],[25,2,25,7],[26,2,26,7],[27,2,27,7],[28,1,28,7],[29,1,29,7],[30,2,30,7],[31,2,31,7],[32,2,32,7],[33,2,33,7],[34,2,34,7],[36,2,36,7],[37,2,37,7],[38,2,38,7],[39,2,39,7]]}
[null,"Informacje o śledzeniu faktur"]
[]
[]
[null,"Śledzenie faktur zostało zaprojektowane do przechowywania historii klientów, faktur i szczegółów faktur, dzięki czemu można przechowywać wiele faktur bez tworzenia wielu plików. Funkcja śledzenie faktur umożliwia także analizowanie wcześniej zafakturowanych danych. Na przykład możesz wyświetlić wszystkie faktury dla klienta, konkretnego projektu lub wyświetlić wszystkie faktury z zeszłego miesiąca, zeszłego roku i inne."]
[null,"Zanim zaczniesz, zapoznaj się z dostarczonymi przykładowymi danymi. W arkuszu Faktura zaznacz komórkę po prawej stronie pola Nr faktury (komórka L8), a zostanie wyświetlona lista rozwijana. Wybierz strzałkę listy rozwijanej, a następnie wybierz przykładową fakturę. Zwróć uwagę na to, jak automatycznie zmieniają się wszystkie informacje na fakturze odzwierciedlające wybraną fakturę. Teraz poszukaj arkuszy Klienci, Faktury — główne i Szczegóły faktury. W każdym z tych arkuszy znajdują się informacje do faktury, a wszystkie wprowadzane zmiany będą automatycznie aktualizowane. "]
[null,"Jak rozpocząć?"]
[null,"Zmodyfikuj arkusz Faktura, aby odzwierciedlał dane firmy, wykonując następujące czynności:"]
[null,"1.","Przejdź do arkusza Faktura i na karcie Recenzja w grupie Chroń wybierz pozycję Nie chroń arkusza. "]
[null,null,"Uwaga: Arkusz Faktura jest chroniony, aby zapobiec niezamierzonym zmianom, ponieważ, jak wcześniej wspomniano, większość danych w tym arkuszu pochodzi ze wszystkich innych arkuszy w skoroszycie. "]
[null,"2.","Dostosuj nagłówek faktury, wpisując nazwę Twojej firmy, adres, miasto, kod pocztowy, adres e-mail, witrynę internetową itd. U dołu faktury (wiersz 43) zmodyfikuj instrukcje dotyczące płatności. "]
[null,null,"Ważne! Nie modyfikuj informacji o rozliczeniach ani fakturze. Wszystkie te komórki zawierają formuły, które będą automatycznie aktualizowały fakturę, jak zauważono w sekcji Informacje o śledzeniu faktur.  "]
[null,"3.","(Opcjonalnie) Modyfikuj kolory w całym skoroszycie: Na karcie Układ strony w grupie Motywy wybierz pozycję Kolory i z galerii kolorów wybierz inny zestaw kolorów motywu. "]
[null,"Porada: Tworzenie niestandardowego koloru motywu w celu dopasowania do znaku marki firmy! W tym celu na karcie Układ strony w grupie Motywy wybierz pozycję Kolory, a następnie wybierz pozycję Dostosuj kolory. Aby uzyskać więcej informacji na temat tworzenia niestandardowego zestawu kolorów, wyświetl następujący temat pomocy: "]
[null,null,"Dostosuj motyw dokumentu."]
[null,"4.","Po wprowadzeniu żądanych zmian wróć do arkusza Faktura i na karcie Recenzja w grupie Zmiany wybierz pozycję Chroń arkusz, a następnie wybierz pozycję OK. Po włączeniu ochrony arkusza Faktura jedyną komórką, którą możesz wybrać, jest komórka z listą rozwijaną numerów faktur."]
[null,"Jak utworzyć fakturę?"]
[null,"1.","W arkuszu Klienci wprowadź informacje o kliencie, takie jak nazwa i adres firmy. Zwróć uwagę, że Nr firmy to ważna pozycja, ponieważ zapewnia ona unikatowy identyfikator każdej firmie używany przez funkcję śledzenia faktur. Należy również pamiętać, że musisz dodać firmę tylko raz. W przypadku kolejnych faktur dla tej samej firmy ten krok może zostać pominięty. "]
[null,null,"Uwaga: Jeśli przypiszesz ten sam numer do więcej niż jednej firmy lub wprowadzisz tę samą nazwę firmy więcej niż raz, te pozycje zmienią kolor na czerwony w celu zaalarmowania o duplikacie. "]
[null,"2.","W arkuszu Faktura — główny wprowadź podstawowe informacje na temat faktury, takie jak numer faktury, data faktury i opis projektu. Numer faktury, podobnie jak w przypadku numeru firmy, jest ważnym wpisem, ponieważ zapewnia unikatowy identyfikator każdej fakturze i jest używany przez funkcję śledzenia faktur. Kolejnym ważnym wpisem jest firma. Po wybraniu firmy z udostępnionej listy rozwijanej kojarzy ona Twoją fakturę z tą firmą. Następnie, po wybraniu numeru faktury w arkuszu Faktura, dane tej firmy, takie jak nazwa i adres firmy, będą automatycznie wypełniane na fakturze."]
[null,null,"Uwaga: W przypadku przydzielenia tego samego numeru do więcej niż jednej faktury te pozycje zmienią kolor na czerwony, aby zaalarmować Cię o duplikacie. "]
[null,"3.","W arkuszu Szczegóły faktury wprowadź szczegółowe informacje o fakturze, takie jak opis pozycji, numer pozycji, ilość i cenę jednostkową. Lista rozwijana Nr faktury zawiera listę faktur wprowadzonych w arkuszu Faktury — główny, aby ułatwić wprowadzanie danych. Podobnie jak w przypadku numeru firmy w poprzednim kroku, Nr firmy skojarzy ten szczegół pozycji z określoną fakturą. Po wybraniu numeru faktury w arkuszu Faktura na liście rozwijanej Nr faktury zostaną wyświetlone powiązane pozycje szczegółów faktury dla tej faktury."]
[null,null,"Uwaga: Masz ograniczenie do 25 pozycji szczegółów na fakturę. Jeśli zostanie dodanych więcej niż 25 elementów, wszystkie odpowiadające im wpisy zmienią kolor na czerwony, aby zaalarmować Cię o tym ograniczeniu. Jeśli masz więcej niż 25 pozycji na fakturze, musisz utworzyć drugą fakturę. "]
[null,"Jak dodać więcej klientów, faktur i szczegółów faktury?"]
[null,"Dane dla klientów, faktur i szczegółów faktury są przechowywane w tabelach programu Excel. Po dodaniu nowego wiersza do tabeli nowo dodany wiersz zostanie sformatowany automatycznie, a wszystkie obliczenia zostaną skopiowane. Aby dodać nowe wiersze tabeli, wykonaj jedną z następujących czynności:"]
[null,"● ","Jeśli tabela nie zawiera wiersza sumy, zacznij wpisywać poniżej tabeli, a po naciśnięciu klawisza Enter lub Tab zostanie ona automatycznie rozszerzona."]
[null,"● ","Umieść wskaźnik myszy w ostatniej komórce powyżej wiersza Suma, na przykład w tabeli Faktury w komórce Uwagi dla ostatniej faktury, a następnie naciśnij klawisz Tab."]
[null,"● ","Na karcie Narzędzia główne w grupie Komórki wybierz pozycję Wstaw, a następnie zaznacz pozycję Wiersz tabeli powyżej lub Wiersz tabeli poniżej. "]
[null,"● ","W prawym dolnym rogu tabeli umieść wskaźnik myszy na uchwycie zmiany rozmiaru tabeli, a następnie przeciągnij w dół, aby zwiększyć liczbę dostępnych wierszy tabeli."]
[null,"Jak analizować szczegóły faktury?"]
[null,"Jak zauważono w sekcji Informacje o śledzeniu faktur, po wprowadzeniu kilku faktur możesz wyświetlić listę wszystkich faktur dla określonego klienta, projektu, określonego przedziału dat i o wiele więcej. Analiza tego typu jest realizowana za pomocą filtru, który pozwala szybko zawęzić listę danych. Aby uzyskać dostęp do filtru w tabelach Klienci, Faktury lub Szczegóły faktury, wybierz strzałkę listy rozwijanej obok dowolnej nazwy pola tabeli. Zostanie wyświetlone okienko Filtr zawierające wiele różnych opcji filtrowania. Oto kilka przykładów filtrowania, które pomogą Ci w rozpoczęciu pracy:"]
[null,"● ","Aby wyświetlić łączną kwotę zafakturowaną dla określonego klienta, wykonaj następujące czynności: W arkuszu Faktury — główny z prawej strony pola Nr firmy wybierz strzałkę listy rozwijanej. W okienku Filtr kliknij pozycję Zaznacz wszystko, aby usunąć zaznaczenie wszystkich firm, wybierz żądaną firmę, a następnie wybierz pozycję OK. "]
[null,null,"Porada: W okienku Filtruj możesz również wpisać nazwę klienta w polu tekstowym Wyszukaj, aby szybko przeszukać dostępną listę."]
[null,"● ","Aby wyświetlić wszystkie faktury dla określonego klienta i określonych projektów, wykonaj następujące czynności: Zacznij od odfiltrowania żądanego klienta za pomocą instrukcji podanych w poprzednim przykładzie. Następnie po prawej stronie pola Nr projektu wybierz strzałkę listy rozwijanej. W okienku Filtr wybierz żądany projekt lub projekty, a następnie wybierz pozycję OK. "]
[null,"● ","Aby wyświetlić wszystkie faktury za poprzedni miesiąc, wykonaj następujące czynności: W arkuszu Faktury — główny z prawej strony pola Data faktury wybierz strzałkę listy rozwijanej, wskaż pozycję Filtry dat, a następnie wybierz pozycję Ostatni miesiąc."]
[null,"● ","Aby wyświetlić wszystkich klientów o tym samym numerze kierunkowym, wykonaj następujące czynności: W arkuszu Klienci po prawej stronie pola Telefon wybierz strzałkę listy rozwijanej. W okienku Filtr kliknij pole tekstowe Wyszukiwanie, wpisz numer kierunkowy, a następnie wybierz pozycję OK. "]
[null,"Porady dotyczące filtrów"]
[null,"● ","Jeśli tabela zawiera wiersz sumy, tak jak tabele Klienci i Faktury, obliczone sumy będą odzwierciedlać jedynie przefiltrowaną listę."]
[null,"● ","W celu dokładnego dostosowania wyników należy zastosować wiele filtrów do jednego pola lub do wielu pól."]
[null,"● ","Aby usunąć pojedynczy filtr, wybierz strzałkę listy rozwijanej dla poprzednio przefiltrowanej kolumny, a następnie wybierz pozycję Wyczyść filtr z <nazwa pola>."]
[null,"● ","Aby jednocześnie wyczyścić wiele filtrów, umieść wskaźnik myszy w tabeli, na karcie Narzędzia główne w grupie Edytowanie wybierz pozycję Sortuj i filtruj, a następnie wybierz pozycję Wyczyść."]